[Event "Elitserien 2019/2020, round 7-9"]
[Site "Elite stadshotellet, Kungsgatan 6, Vaxjo, Sweden"]
[Date "2020.10.16"]
[Round "1.1"]
[White "Miezis, Normunds"]
[Black "Heberla, Bartlomiej"]
[Result "1/2-1/2"]
[TimeControl "90 minutes for 40 moves + 30 minutes for the rest of the game + 30 seconds per move from move one."]
[WhiteTitle "GM"]
[BlackTitle "GM"]
[WhiteFideId "11600136"]
[BlackFideId "1115120"]
[WhiteElo "2484"]
[BlackElo "2564"]

1. c4 {[%clk 01:30:54]} {[%emt 00:00:05]} e6 {[%clk 01:30:55]} {[%emt
00:00:05]} 2. e4 {[%clk 01:30:51]} {[%emt 00:00:32]} d5 {[%clk 01:31:16]}
{[%emt 00:00:10]} 3. exd5 {[%clk 01:31:10]} {[%emt 00:00:11]} exd5 {[%clk
01:31:41]} {[%emt 00:00:05]} 4. d4 {[%clk 01:31:30]} {[%emt 00:00:10]} Nf6
{[%clk 01:32:08]} {[%emt 00:00:03]} 5. Nc3 {[%clk 01:30:02]} {[%emt 00:01:58]}
Bb4 {[%clk 01:30:47]} {[%emt 00:01:51]} 6. Bd3 {[%clk 01:27:00]} {[%emt
00:03:32]} O-O {[%clk 01:30:16]} {[%emt 00:01:02]} 7. Nge2 {[%clk 01:26:50]}
{[%emt 00:00:40]} dxc4 {[%clk 01:30:15]} {[%emt 00:00:31]} 8. Bxc4 {[%clk
01:27:04]} {[%emt 00:00:15]} Nc6 {[%clk 01:30:29]} {[%emt 00:00:16]} 9. O-O
{[%clk 01:26:09]} {[%emt 00:01:25]} h6 {[%clk 01:30:56]} {[%emt 00:00:04]} 10.
Bf4 {[%clk 01:09:30]} {[%emt 00:17:09]} Bf5 {[%clk 01:25:25]} {[%emt 00:06:01]}
11. d5 {[%clk 00:49:23]} {[%emt 00:20:37]} Ne7 {[%clk 01:08:36]} {[%emt
00:17:19]} 12. Rc1 {[%clk 00:43:04]} {[%emt 00:06:49]} a6 {[%clk 01:02:54]}
{[%emt 00:06:11]} 13. Qd4 {[%clk 00:34:51]} {[%emt 00:08:42]} c5 {[%clk
00:47:31]} {[%emt 00:15:55]} 14. dxc6 {[%clk 00:24:07]} {[%emt 00:11:15]} Nxc6
{[%clk 00:47:40]} {[%emt 00:00:20]} 15. Qxd8 {[%clk 00:18:54]} {[%emt
00:05:45]} Rfxd8 {[%clk 00:46:26]} {[%emt 00:01:43]} 16. Rfd1 {[%clk 00:17:49]}
{[%emt 00:01:35]} Na5 {[%clk 00:32:32]} {[%emt 00:14:24]} 17. Bd5 {[%clk
00:16:30]} {[%emt 00:01:50]} Nxd5 {[%clk 00:29:13]} {[%emt 00:03:49]} 18. Nxd5
{[%clk 00:15:17]} {[%emt 00:01:43]} Nc6 {[%clk 00:29:38]} {[%emt 00:00:06]} 19.
a3 {[%clk 00:04:32]} {[%emt 00:11:14]} Bf8 {[%clk 00:28:39]} {[%emt 00:01:28]}
20. Ng3 {[%clk 00:04:46]} {[%emt 00:00:16]} Be6 {[%clk 00:26:40]} {[%emt
00:02:29]} 21. Nc7 {[%clk 00:04:46]} {[%emt 00:00:30]} Bb3 {[%clk 00:26:06]}
{[%emt 00:01:04]} 22. Re1 {[%clk 00:01:43]} {[%emt 00:03:32]} Rac8 {[%clk
00:26:15]} {[%emt 00:00:21]} 23. Rc3 {[%clk 00:01:45]} {[%emt 00:00:28]} Ba2
{[%clk 00:16:36]} {[%emt 00:10:10]} 24. h4 {[%clk 00:02:06]} {[%emt 00:00:10]}
Rd4 {[%clk 00:09:40]} {[%emt 00:07:26]} 25. Re4 {[%clk 00:02:27]} {[%emt
00:00:08]} Rd1+ {[%clk 00:04:00]} {[%emt 00:06:10]} 26. Kh2 {[%clk 00:02:56]}
{[%emt 00:00:02]} g5 {[%clk 00:03:57]} {[%emt 00:00:32]} 27. hxg5 {[%clk
00:02:53]} {[%emt 00:00:33]} hxg5 {[%clk 00:04:26]} {[%emt 00:00:01]} 28. Bxg5
{[%clk 00:02:02]} {[%emt 00:01:21]} Rxc7 {[%clk 00:04:55]} {[%emt 00:00:01]} 29.
Bf6 {[%clk 00:02:15]} {[%emt 00:00:17]} Be6 {[%clk 00:04:39]} {[%emt 00:00:45]}
30. Nf5 {[%clk 00:01:47]} {[%emt 00:00:59]} Bxf5 {[%clk 00:03:56]} {[%emt
00:01:13]} 31. Rg3+ {[%clk 00:02:08]} {[%emt 00:00:08]} Bg6 {[%clk 00:03:46]}
{[%emt 00:00:40]} 32. Rh3 {[%clk 00:02:36]} {[%emt 00:00:03]} Bd6+ {[%clk
00:02:34]} {[%emt 00:01:42]} 33. f4 {[%clk 00:03:04]} {[%emt 00:00:02]} Bh7
{[%clk 00:02:37]} {[%emt 00:00:26]} 34. Re8+ {[%clk 00:03:28]} {[%emt
00:00:07]} Bf8 {[%clk 00:03:05]} {[%emt 00:00:02]} 35. Rg3+ {[%clk 00:03:30]}
{[%emt 00:00:27]} Bg6 {[%clk 00:03:34]} {[%emt 00:00:01]} 36. Rh3 {[%clk
00:03:34]} {[%emt 00:00:26]} Bh7 {[%clk 00:04:03]} {[%emt 00:00:01]} 1/2-1/2

[Event "Elitserien 2019/2020, round 7-9"]
[Site "Elite stadshotellet, Kungsgatan 6, Vaxjo, Sweden"]
[Date "2020.10.16"]
[Round "1.2"]
[White "Gdanski, Jacek"]
[Black "Akesson, Ralf"]
[Result "1/2-1/2"]
[TimeControl "90 minutes for 40 moves + 30 minutes for the rest of the game + 30 seconds per move from move one."]
[WhiteTitle "GM"]
[BlackTitle "GM"]
[WhiteFideId "1100106"]
[BlackFideId "1700120"]
[WhiteElo "2482"]
[BlackElo "2379"]

1. e4 {[%clk 01:30:56]} {[%emt 00:00:03]} e6 {[%clk 01:30:23]} {[%emt
00:00:37]} 2. d4 {[%clk 01:31:19]} {[%emt 00:00:07]} d5 {[%clk 01:30:47]}
{[%emt 00:00:05]} 3. Nc3 {[%clk 01:31:33]} {[%emt 00:00:17]} dxe4 {[%clk
01:31:02]} {[%emt 00:00:16]} 4. Nxe4 {[%clk 01:31:55]} {[%emt 00:00:07]} Bd7
{[%clk 01:31:24]} {[%emt 00:00:08]} 5. c4 {[%clk 01:31:25]} {[%emt 00:01:01]}
Bc6 {[%clk 01:30:45]} {[%emt 00:01:09]} 6. Nc3 {[%clk 01:31:50]} {[%emt
00:00:05]} Nf6 {[%clk 01:30:33]} {[%emt 00:00:41]} 7. Nf3 {[%clk 01:31:08]}
{[%emt 00:01:12]} Bxf3 {[%clk 01:27:02]} {[%emt 00:04:01]} 8. Qxf3 {[%clk
01:31:33]} {[%emt 00:00:05]} c6 {[%clk 01:27:22]} {[%emt 00:00:10]} 9. Be3
{[%clk 01:28:30]} {[%emt 00:03:33]} Nbd7 {[%clk 01:22:15]} {[%emt 00:05:36]} 10.
Bd3 {[%clk 01:07:29]} {[%emt 00:21:31]} g6 {[%clk 01:19:41]} {[%emt 00:03:04]}
11. O-O {[%clk 01:04:10]} {[%emt 00:03:49]} Bg7 {[%clk 01:20:03]} {[%emt
00:00:08]} 12. Rfd1 {[%clk 01:03:05]} {[%emt 00:01:35]} O-O {[%clk 01:19:59]}
{[%emt 00:00:33]} 13. Bf1 {[%clk 01:03:02]} {[%emt 00:00:34]} Re8 {[%clk
01:12:01]} {[%emt 00:08:29]} 14. b4 {[%clk 00:51:36]} {[%emt 00:11:55]} a6
{[%clk 01:02:22]} {[%emt 00:10:09]} 15. Rac1 {[%clk 00:39:33]} {[%emt
00:12:34]} Qe7 {[%clk 00:58:08]} {[%emt 00:04:43]} 16. a3 {[%clk 00:38:51]}
{[%emt 00:01:13]} Rac8 {[%clk 00:54:37]} {[%emt 00:04:01]} 17. h3 {[%clk
00:32:13]} {[%emt 00:07:08]} b5 {[%clk 00:41:04]} {[%emt 00:14:02]} 18. d5
{[%clk 00:17:20]} {[%emt 00:15:24]} Ne5 {[%clk 00:38:25]} {[%emt 00:03:09]} 19.
Qf4 {[%clk 00:17:47]} {[%emt 00:00:04]} exd5 {[%clk 00:27:10]} {[%emt
00:11:45]} 20. cxd5 {[%clk 00:17:56]} {[%emt 00:00:20]} cxd5 {[%clk 00:25:51]}
{[%emt 00:01:48]} 21. Nxd5 {[%clk 00:18:04]} {[%emt 00:00:22]} Nxd5 {[%clk
00:26:12]} {[%emt 00:00:09]} 22. Rxd5 {[%clk 00:18:31]} {[%emt 00:00:04]} Rxc1
{[%clk 00:24:43]} {[%emt 00:01:59]} 23. Bxc1 {[%clk 00:18:52]} 1/2-1/2

[Event "Elitserien 2019/2020, round 7-9"]
[Site "Elite stadshotellet, Kungsgatan 6, Vaxjo, Sweden"]
[Date "2020.10.16"]
[Round "1.3"]
[White "Sjodahl, Pontus"]
[Black "Gajic, Mladen"]
[Result "0-1"]
[TimeControl "90 minutes for 40 moves + 30 minutes for the rest of the game + 30 seconds per move from move one."]
[WhiteTitle "IM"]
[BlackTitle "FM"]
[WhiteFideId "1700537"]
[BlackFideId "1709178"]
[WhiteElo "2430"]
[BlackElo "2295"]

1. d4 {[%clk 01:30:55]} {[%emt 00:00:04]} e6 {[%clk 01:30:57]} {[%emt
00:00:04]} 2. c4 {[%clk 01:30:48]} {[%emt 00:00:37]} f5 {[%clk 01:31:23]}
{[%emt 00:00:04]} 3. g3 {[%clk 01:29:31]} {[%emt 00:01:46]} Nf6 {[%clk
01:31:50]} {[%emt 00:00:03]} 4. Bg2 {[%clk 01:29:54]} {[%emt 00:00:07]} Be7
{[%clk 01:30:44]} {[%emt 00:01:36]} 5. Nf3 {[%clk 01:28:06]} {[%emt 00:02:18]}
d5 {[%clk 01:30:51]} {[%emt 00:00:24]} 6. O-O {[%clk 01:25:44]} {[%emt
00:02:51]} Ne4 {[%clk 01:30:41]} {[%emt 00:00:40]} 7. cxd5 {[%clk 01:13:03]}
{[%emt 00:13:10]} exd5 {[%clk 01:30:35]} {[%emt 00:00:37]} 8. Ne5 {[%clk
01:13:20]} {[%emt 00:00:13]} Nd7 {[%clk 01:18:43]} {[%emt 00:12:23]} 9. f3
{[%clk 01:09:11]} {[%emt 00:04:38]} Nd6 {[%clk 01:12:24]} {[%emt 00:06:48]} 10.
Nc3 {[%clk 01:07:26]} {[%emt 00:02:16]} c6 {[%clk 01:08:52]} {[%emt 00:04:02]}
11. b3 {[%clk 00:55:13]} {[%emt 00:12:42]} Nxe5 {[%clk 01:04:12]} {[%emt
00:05:11]} 12. dxe5 {[%clk 00:55:36]} {[%emt 00:00:07]} Nf7 {[%clk 01:03:56]}
{[%emt 00:00:46]} 13. f4 {[%clk 00:54:48]} {[%emt 00:01:18]} h5 {[%clk
01:00:40]} {[%emt 00:03:46]} 14. h4 {[%clk 00:44:57]} {[%emt 00:10:20]} Nh6
{[%clk 00:56:43]} {[%emt 00:04:28]} 15. Qd3 {[%clk 00:31:29]} {[%emt 00:13:56]}
Ng4 {[%clk 00:56:20]} {[%emt 00:00:55]} 16. Nd1 {[%clk 00:30:02]} {[%emt
00:01:57]} Qb6+ {[%clk 00:42:45]} {[%emt 00:14:04]} 17. e3 {[%clk 00:24:01]}
{[%emt 00:06:31]} Be6 {[%clk 00:39:58]} {[%emt 00:03:17]} 18. Nf2 {[%clk
00:22:17]} {[%emt 00:02:14]} Rd8 {[%clk 00:26:52]} {[%emt 00:13:38]} 19. Nxg4
{[%clk 00:21:51]} {[%emt 00:00:56]} hxg4 {[%clk 00:27:21]} {[%emt 00:00:01]} 20.
Bd2 {[%clk 00:19:05]} {[%emt 00:03:15]} Rd7 {[%clk 00:25:56]} {[%emt 00:01:55]}
21. b4 {[%clk 00:16:42]} {[%emt 00:02:53]} a6 {[%clk 00:18:22]} {[%emt
00:08:04]} 22. Bc3 {[%clk 00:12:28]} {[%emt 00:04:43]} O-O {[%clk 00:18:02]}
{[%emt 00:00:51]} 23. Rfb1 {[%clk 00:11:32]} {[%emt 00:01:26]} Qa7 {[%clk
00:14:36]} {[%emt 00:03:56]} 24. a4 {[%clk 00:11:21]} {[%emt 00:00:40]} c5
{[%clk 00:10:18]} {[%emt 00:04:49]} 25. bxc5 {[%clk 00:09:56]} {[%emt
00:01:55]} Bxc5 {[%clk 00:10:43]} {[%emt 00:00:05]} 26. Bd4 {[%clk 00:08:51]}
{[%emt 00:01:35]} Rc8 {[%clk 00:08:43]} {[%emt 00:02:30]} 27. Rb4 {[%clk
00:05:12]} {[%emt 00:04:09]} b6 {[%clk 00:08:09]} {[%emt 00:01:04]} 28. Rb2
{[%clk 00:04:55]} {[%emt 00:00:47]} Rdc7 {[%clk 00:05:22]} {[%emt 00:03:18]} 29.
Bf1 {[%clk 00:05:07]} {[%emt 00:00:17]} a5 {[%clk 00:04:38]} {[%emt 00:01:14]}
30. Rab1 {[%clk 00:05:13]} {[%emt 00:00:24]} Bb4 {[%clk 00:04:25]} {[%emt
00:00:43]} 31. Qb5 {[%clk 00:05:02]} {[%emt 00:00:41]} Rc6 {[%clk 00:02:48]}
{[%emt 00:02:08]} 32. Rd1 {[%clk 00:04:22]} {[%emt 00:01:09]} Qb7 {[%clk
00:00:40]} {[%emt 00:02:38]} 33. Qa6 {[%clk 00:03:20]} {[%emt 00:01:32]} Qxa6
{[%clk 00:00:35]} {[%emt 00:00:37]} 34. Bxa6 {[%clk 00:03:46]} {[%emt
00:00:03]} Rc1 {[%clk 00:00:58]} {[%emt 00:00:07]} 35. Rf1 {[%clk 00:03:21]}
{[%emt 00:00:55]} Rxf1+ {[%clk 00:01:18]} {[%emt 00:00:10]} 36. Kxf1 {[%clk
00:03:20]} {[%emt 00:00:31]} Rc1+ {[%clk 00:01:43]} {[%emt 00:00:05]} 37. Ke2
{[%clk 00:03:07]} {[%emt 00:00:43]} Bd7 {[%clk 00:02:02]} {[%emt 00:00:12]} 38.
Bb7 {[%clk 00:02:07]} {[%emt 00:01:30]} Bc6 {[%clk 00:01:00]} {[%emt 00:01:31]}
39. Bxc6 {[%clk 00:01:45]} {[%emt 00:00:52]} Rxc6 {[%clk 00:01:29]} {[%emt
00:00:01]} 40. Kd3 {[%clk 00:02:01]} {[%emt 00:00:14]} g6 {[%clk 00:01:19]}
{[%emt 00:00:41]} 41. Rb1 {[%clk 00:29:42]} {[%emt 00:02:49]} Kf7 {[%clk
00:18:59]} {[%emt 00:12:50]} 42. Rh1 {[%clk 00:25:50]} {[%emt 00:04:21]} Be7
{[%clk 00:15:21]} {[%emt 00:04:09]} 43. h5 {[%clk 00:20:34]} {[%emt 00:05:46]}
gxh5 {[%clk 00:13:46]} {[%emt 00:02:06]} 44. Rxh5 {[%clk 00:20:54]} {[%emt
00:00:09]} Ke6 {[%clk 00:12:25]} {[%emt 00:01:51]} 45. Bxb6 {[%clk 00:18:41]}
{[%emt 00:02:43]} Rc4 {[%clk 00:11:57]} {[%emt 00:00:58]} 46. Rh6+ {[%clk
00:18:36]} {[%emt 00:00:35]} Kd7 {[%clk 00:06:07]} {[%emt 00:06:20]} 47. Bxa5
{[%clk 00:09:07]} {[%emt 00:09:59]} Rxa4 {[%clk 00:06:22]} {[%emt 00:00:15]} 48.
Bb6 {[%clk 00:08:27]} {[%emt 00:01:09]} Bb4 {[%clk 00:05:10]} {[%emt 00:01:43]}
49. Rf6 {[%clk 00:07:14]} {[%emt 00:01:41]} Ra2 {[%clk 00:05:20]} {[%emt
00:00:21]} 50. e4 {[%clk 00:03:11]} {[%emt 00:04:33]} fxe4+ {[%clk 00:04:42]}
{[%emt 00:01:09]} 51. Kd4 {[%clk 00:01:58]} {[%emt 00:01:42]} Rd2+ {[%clk
00:04:23]} {[%emt 00:00:50]} 52. Ke3 {[%clk 00:02:24]} {[%emt 00:00:04]} Rd3+
{[%clk 00:04:37]} {[%emt 00:00:16]} 53. Ke2 {[%clk 00:02:43]} {[%emt 00:00:11]}
d4 {[%clk 00:03:19]} {[%emt 00:01:49]} 54. Bxd4 {[%clk 00:01:19]} {[%emt
00:01:54]} Rxd4 {[%clk 00:03:41]} {[%emt 00:00:08]} 55. f5 {[%clk 00:01:10]}
{[%emt 00:00:39]} Be7 {[%clk 00:00:36]} {[%emt 00:03:36]} 56. Rg6 {[%clk
00:00:53]} {[%emt 00:00:47]} Rd5 {[%clk 00:00:48]} {[%emt 00:00:18]} 57. Rg7
{[%clk 00:00:43]} {[%emt 00:00:40]} Ke8 {[%clk 00:01:03]} {[%emt 00:00:14]} 58.
f6 {[%clk 00:00:42]} {[%emt 00:00:31]} Bf8 {[%clk 00:01:15]} {[%emt 00:00:20]}
59. Rxg4 {[%clk 00:00:37]} {[%emt 00:00:34]} Rxe5 {[%clk 00:01:41]} {[%emt
00:00:04]} 60. Ke3 {[%clk 00:00:47]} {[%emt 00:00:20]} Bc5+ {[%clk 00:01:45]}
{[%emt 00:00:26]} 61. Kf4 {[%clk 00:00:33]} {[%emt 00:00:44]} Bd4 {[%clk
00:02:07]} {[%emt 00:00:07]} 62. Rg8+ {[%clk 00:00:45]} {[%emt 00:00:18]} Kf7
{[%clk 00:02:14]} {[%emt 00:00:23]} 63. Rd8 {[%clk 00:01:14]} {[%emt 00:00:01]}
Bb2 {[%clk 00:00:48]} {[%emt 00:01:55]} 64. Rb8 {[%clk 00:01:32]} {[%emt
00:00:12]} e3 {[%clk 00:00:58]} {[%emt 00:00:21]} 65. Rxb2 {[%clk 00:01:19]}
{[%emt 00:00:43]} e2 {[%clk 00:01:27]} 66. Kxe5 {[%clk 00:01:40]} {[%emt
00:00:09]} e1=Q+ {[%clk 00:01:55]} {[%emt 00:00:02]} 67. Kd4 {[%clk 00:02:02]}
{[%emt 00:00:04]} Qxg3 {[%clk 00:01:43]} {[%emt 00:00:46]} 68. Re2 {[%clk
00:02:27]} {[%emt 00:00:05]} Kxf6 {[%clk 00:01:52]} {[%emt 00:00:22]} 69. Re3
{[%clk 00:02:52]} {[%emt 00:00:03]} Qf2 {[%clk 00:01:11]} {[%emt 00:01:07]} 70.
Ke4 {[%clk 00:03:15]} {[%emt 00:00:12]} Kg5 {[%clk 00:01:13]} {[%emt 00:00:28]}
71. Rd3 {[%clk 00:03:21]} {[%emt 00:00:22]} Qc2 {[%clk 00:01:33]} {[%emt
00:00:11]} 72. Kd4 {[%clk 00:03:41]} {[%emt 00:00:10]} Kf4 {[%clk 00:01:56]}
{[%emt 00:00:07]} 73. Rc3 {[%clk 00:03:46]} {[%emt 00:00:25]} Qe4+ {[%clk
00:01:44]} {[%emt 00:00:42]} 74. Kc5 {[%clk 00:04:13]} {[%emt 00:00:04]} Ke5
{[%clk 00:01:57]} {[%emt 00:00:16]} 75. Kb5 {[%clk 00:04:02]} {[%emt 00:00:39]}
Qb7+ {[%clk 00:02:17]} {[%emt 00:00:10]} 76. Kc4 {[%clk 00:04:22]} {[%emt
00:00:12]} Ke4 {[%clk 00:01:59]} {[%emt 00:00:47]} 77. Kc5 {[%clk 00:04:10]}
{[%emt 00:00:42]} Qc7+ {[%clk 00:02:22]} {[%emt 00:00:07]} 78. Kb4 {[%clk
00:04:37]} {[%emt 00:00:05]} Qb6+ {[%clk 00:02:48]} {[%emt 00:00:03]} 79. Kc4
{[%clk 00:04:58]} {[%emt 00:00:11]} Qa5 {[%clk 00:03:04]} {[%emt 00:00:09]} 80.
Rc2 {[%clk 00:04:51]} {[%emt 00:00:40]} Qa4+ {[%clk 00:03:09]} {[%emt
00:00:26]} 81. Kc3 {[%clk 00:05:17]} {[%emt 00:00:05]} Qd4+ {[%clk 00:03:13]}
{[%emt 00:00:25]} 82. Kb3 {[%clk 00:05:43]} {[%emt 00:00:04]} Kd3 {[%clk
00:03:34]} {[%emt 00:00:08]} 83. Rb2 {[%clk 00:05:26]} {[%emt 00:00:46]} Qe5
{[%clk 00:02:48]} {[%emt 00:01:15]} 84. Ka2 {[%clk 00:03:20]} {[%emt 00:02:38]}
Kc3 {[%clk 00:02:03]} {[%emt 00:01:13]} 85. Kb1 {[%clk 00:03:23]} {[%emt
00:00:27]} Qe4+ {[%clk 00:01:36]} {[%emt 00:00:59]} 86. Ka1 {[%clk 00:03:39]}
{[%emt 00:00:14]} Qh1+ {[%clk 00:01:38]} {[%emt 00:00:28]} 87. Ka2 {[%clk
00:04:03]} {[%emt 00:00:06]} Qd1 {[%clk 00:01:37]} {[%emt 00:00:18]} 88. Rh2
{[%clk 00:03:19]} {[%emt 00:01:26]} Qa4+ {[%clk 00:01:30]} {[%emt 00:00:37]} 89.
Kb1 {[%clk 00:03:45]} {[%emt 00:00:04]} Qb5+ {[%clk 00:01:53]} {[%emt
00:00:03]} 90. Ka1 {[%clk 00:04:07]} {[%emt 00:00:12]} Qa6+ {[%clk 00:02:11]}
{[%emt 00:00:11]} 0-1

[Event "Elitserien 2019/2020, round 7-9"]
[Site "Elite stadshotellet, Kungsgatan 6, Vaxjo, Sweden"]
[Date "2020.10.16"]
[Round "1.4"]
[White "Ornstein, Axel"]
[Black "Pantzar, Milton"]
[Result "0-1"]
[TimeControl "90 minutes for 40 moves + 30 minutes for the rest of the game + 30 seconds per move from move one."]
[WhiteTitle "IM"]
[BlackTitle "IM"]
[WhiteFideId "1700111"]
[BlackFideId "1721003"]
[WhiteElo "2284"]
[BlackElo "2406"]

1. d4 {[%clk 01:30:57]} {[%emt 00:00:02]} d5 {[%clk 01:30:48]} {[%emt
00:00:12]} 2. c4 {[%clk 01:31:06]} {[%emt 00:00:21]} e6 {[%clk 01:31:05]}
{[%emt 00:00:13]} 3. Nc3 {[%clk 01:31:15]} {[%emt 00:00:21]} a6 {[%clk
01:31:01]} {[%emt 00:00:34]} 4. cxd5 {[%clk 01:25:39]} {[%emt 00:06:05]} exd5
{[%clk 01:31:15]} {[%emt 00:00:16]} 5. Bf4 {[%clk 01:25:01]} {[%emt 00:01:08]}
Nf6 {[%clk 01:31:07]} {[%emt 00:00:38]} 6. e3 {[%clk 01:25:26]} {[%emt
00:00:06]} Bd6 {[%clk 01:31:04]} {[%emt 00:00:33]} 7. Nge2 {[%clk 01:25:36]}
{[%emt 00:00:20]} O-O {[%clk 01:28:09]} {[%emt 00:03:26]} 8. Qc2 {[%clk
01:25:18]} {[%emt 00:00:48]} Re8 {[%clk 01:25:14]} {[%emt 00:03:25]} 9. Bg5
{[%clk 01:24:31]} {[%emt 00:01:17]} c6 {[%clk 01:23:06]} {[%emt 00:02:38]} 10.
Ng3 {[%clk 01:24:55]} {[%emt 00:00:05]} h6 {[%clk 01:18:59]} {[%emt 00:04:38]}
11. Bxf6 {[%clk 01:25:10]} {[%emt 00:00:14]} Qxf6 {[%clk 01:19:26]} {[%emt
00:00:03]} 12. O-O-O {[%clk 01:19:51]} {[%emt 00:05:49]} b5 {[%clk 01:15:57]}
{[%emt 00:03:59]} 13. Kb1 {[%clk 01:20:15]} {[%emt 00:00:05]} a5 {[%clk
01:12:43]} {[%emt 00:03:45]} 14. e4 {[%clk 01:20:33]} {[%emt 00:00:11]} Bxg3
{[%clk 01:04:42]} {[%emt 00:08:30]} 15. hxg3 {[%clk 01:18:52]} {[%emt
00:02:12]} dxe4 {[%clk 01:05:05]} {[%emt 00:00:07]} 16. Nxe4 {[%clk 01:19:13]}
{[%emt 00:00:08]} Rxe4 {[%clk 01:05:14]} {[%emt 00:00:22]} 17. Bxb5 {[%clk
01:16:26]} {[%emt 00:03:17]} Be6 {[%clk 00:58:17]} {[%emt 00:07:27]} 18. Bc4
{[%clk 01:06:04]} {[%emt 00:10:53]} Nd7 {[%clk 00:47:20]} {[%emt 00:11:28]} 19.
f3 {[%clk 01:06:06]} {[%emt 00:00:28]} Rxd4 {[%clk 00:45:29]} {[%emt 00:02:21]}
20. Rxd4 {[%clk 01:04:48]} {[%emt 00:01:48]} Qxd4 {[%clk 00:45:50]} {[%emt
00:00:10]} 21. Bxe6 {[%clk 01:05:14]} {[%emt 00:00:04]} fxe6 {[%clk 00:46:03]}
{[%emt 00:00:17]} 22. Rd1 {[%clk 01:05:40]} {[%emt 00:00:04]} Qa7 {[%clk
00:46:24]} {[%emt 00:00:09]} 23. Qxc6 {[%clk 01:05:57]} {[%emt 00:00:13]} Nf8
{[%clk 00:46:39]} {[%emt 00:00:15]} 24. Rc1 {[%clk 00:57:41]} {[%emt 00:08:46]}
Rd8 {[%clk 00:45:19]} {[%emt 00:01:50]} 25. Rc5 {[%clk 00:58:04]} {[%emt
00:00:08]} Rd1+ {[%clk 00:44:47]} {[%emt 00:01:02]} 26. Kc2 {[%clk 00:58:22]}
{[%emt 00:00:12]} Rg1 {[%clk 00:43:57]} {[%emt 00:01:19]} 27. f4 {[%clk
00:58:47]} {[%emt 00:00:05]} Qf7 {[%clk 00:43:39]} {[%emt 00:00:48]} 28. Qf3
{[%clk 00:54:08]} {[%emt 00:05:08]} a4 {[%clk 00:41:17]} {[%emt 00:02:53]} 29.
g4 {[%clk 00:52:44]} {[%emt 00:01:54]} Qg6+ {[%clk 00:40:07]} {[%emt 00:01:40]}
30. f5 {[%clk 00:51:59]} {[%emt 00:01:15]} Qg5 {[%clk 00:40:21]} {[%emt
00:00:16]} 31. Kd3 {[%clk 00:51:41]} {[%emt 00:00:48]} exf5 {[%clk 00:32:57]}
{[%emt 00:07:53]} 32. Rxf5 {[%clk 00:51:39]} {[%emt 00:00:32]} Qd8+ {[%clk
00:33:06]} {[%emt 00:00:21]} 33. Kc2 {[%clk 00:45:53]} {[%emt 00:06:16]} Ne6
{[%clk 00:32:01]} {[%emt 00:01:36]} 0-1